[Event "*** Titled Tuesday Blitz"]
[Site "Chess.com"]
[Date "2020.10.20"]
[Round "2"]
[White "Leonid_Starozhilov"]
[Black "CrazyMartian"]
[Result "1-0"]
[WhiteElo "2640"]
[BlackElo "2312"]
[TimeControl "180+1"]
[EndTime "10:18:14 PDT"]
[Termination "Leonid_Starozhilov won by checkmate"]

1. e4 {[%clk 0:02:59.5]} 1... c5 {[%clk 0:02:59.9]} 2. Nf3 {[%clk 0:02:59.5]}
2... d6 {[%clk 0:02:59.5]} 3. Bb5+ {[%clk 0:02:59.3]} 3... Bd7 {[%clk
0:02:59.2]} 4. Bc4 {[%clk 0:02:58.5]} 4... Nf6 {[%clk 0:02:57.5]} 5. d3 {[%clk
0:02:58.7]} 5... Nc6 {[%clk 0:02:54.9]} 6. O-O {[%clk 0:02:58.4]} 6... e6 {[%clk
0:02:54.7]} 7. c3 {[%clk 0:02:56]} 7... Be7 {[%clk 0:02:54.3]} 8. Nbd2 {[%clk
0:02:56.1]} 8... O-O {[%clk 0:02:53.3]} 9. Bb3 {[%clk 0:02:56.4]} 9... b5 {[%clk
0:02:52]} 10. d4 {[%clk 0:02:55.4]} 10... cxd4 {[%clk 0:02:50]} 11. cxd4 {[%clk
0:02:55.6]} 11... d5 {[%clk 0:02:49.7]} 12. e5 {[%clk 0:02:48.1]} 12... Ne4
{[%clk 0:02:49.4]} 13. Bc2 {[%clk 0:02:48.3]} 13... Nxd2 {[%clk 0:02:28.2]} 14.
Qxd2 {[%clk 0:02:49.2]} 14... Rc8 {[%clk 0:02:23.8]} 15. a3 {[%clk 0:02:38.7]}
15... Na5 {[%clk 0:02:10.1]} 16. Qd3 {[%clk 0:02:36.8]} 16... g6 {[%clk
0:02:06.9]} 17. Bh6 {[%clk 0:02:25.6]} 17... Re8 {[%clk 0:02:05.9]} 18. Rac1
{[%clk 0:02:13.9]} 18... Nc4 {[%clk 0:02:01.1]} 19. Rb1 {[%clk 0:02:09.7]} 19...
a5 {[%clk 0:01:39.8]} 20. g3 {[%clk 0:01:55.4]} 20... b4 {[%clk 0:01:38.6]} 21.
axb4 {[%clk 0:01:54.5]} 21... axb4 {[%clk 0:01:38.9]} 22. h4 {[%clk 0:01:54.8]}
22... Qb6 {[%clk 0:01:33.8]} 23. Ng5 {[%clk 0:01:37.7]} 23... Red8 {[%clk
0:00:59.2]} 24. h5 {[%clk 0:01:22.9]} 24... Be8 {[%clk 0:00:52.9]} 25. hxg6
{[%clk 0:01:13]} 25... hxg6 {[%clk 0:00:48.1]} 26. Kg2 {[%clk 0:00:59.9]} 26...
b3 {[%clk 0:00:43.6]} 27. Bxb3 {[%clk 0:00:46.5]} 27... Nd2 {[%clk 0:00:40.9]}
28. Qxd2 {[%clk 0:00:46.6]} 28... Qxb3 {[%clk 0:00:39.8]} 29. Rbc1 {[%clk
0:00:35.8]} 29... Rc4 {[%clk 0:00:18.9]} 30. Rc3 {[%clk 0:00:33.5]} 30... Rxc3
{[%clk 0:00:17.9]} 31. bxc3 {[%clk 0:00:33.6]} 31... Rc8 {[%clk 0:00:18.1]} 32.
Rc1 {[%clk 0:00:26.5]} 32... Qc4 {[%clk 0:00:17.9]} 33. Qf4 {[%clk 0:00:22.3]}
33... Bf8 {[%clk 0:00:16.9]} 34. Bxf8 {[%clk 0:00:21.9]} 34... Kxf8 {[%clk
0:00:17.2]} 35. Nxe6+ {[%clk 0:00:22.3]} 35... Ke7 {[%clk 0:00:17.6]} 36. Qf6+
{[%clk 0:00:18.5]} 36... Kd7 {[%clk 0:00:16.8]} 37. Nf8+ {[%clk 0:00:16.6]}
37... Kc7 {[%clk 0:00:15.3]} 38. Qd6+ {[%clk 0:00:17.3]} 38... Kb7 {[%clk
0:00:15.1]} 39. Rb1+ {[%clk 0:00:17.7]} 39... Bb5 {[%clk 0:00:15]} 40. Nd7
{[%clk 0:00:14.1]} 40... Rc6 {[%clk 0:00:14.1]} 41. Qb8+ {[%clk 0:00:12.8]}
41... Ka6 {[%clk 0:00:14.2]} 42. Qa8# {[%clk 0:00:12.8]} 1-0

[Event "*** Titled Tuesday Blitz"]
[Site "Chess.com"]
[Date "2020.10.20"]
[Round "2"]
[White "Jungle_Jaguar"]
[Black "ciucas1892"]
[Result "0-1"]
[WhiteElo "2596"]
[BlackElo "2348"]
[TimeControl "180+1"]
[EndTime "10:18:15 PDT"]
[Termination "ciucas1892 won on time"]

1. e4 {[%clk 0:03:00.9]} 1... c5 {[%clk 0:02:59.6]} 2. Nf3 {[%clk 0:03:00.8]}
2... g6 {[%clk 0:02:58.8]} 3. c3 {[%clk 0:02:59.6]} 3... Bg7 {[%clk 0:02:58.1]}
4. d4 {[%clk 0:02:59.5]} 4... cxd4 {[%clk 0:02:59]} 5. cxd4 {[%clk 0:03:00.4]}
5... d5 {[%clk 0:02:59.6]} 6. e5 {[%clk 0:03:00.8]} 6... a6 {[%clk 0:02:57]} 7.
h3 {[%clk 0:02:58.2]} 7... f6 {[%clk 0:02:51.6]} 8. exf6 {[%clk 0:02:43]} 8...
Nxf6 {[%clk 0:02:51.4]} 9. Nc3 {[%clk 0:02:42.8]} 9... O-O {[%clk 0:02:49.9]}
10. Bd3 {[%clk 0:02:42.6]} 10... Nc6 {[%clk 0:02:49.5]} 11. O-O {[%clk
0:02:42.6]} 11... Nh5 {[%clk 0:02:47.8]} 12. Bg5 {[%clk 0:01:58.9]} 12... Nf4
{[%clk 0:02:27.4]} 13. Bc2 {[%clk 0:01:55.2]} 13... Kh8 {[%clk 0:01:52.5]} 14.
Re1 {[%clk 0:01:47.2]} 14... Qd6 {[%clk 0:01:36.6]} 15. Bb3 {[%clk 0:01:41.3]}
15... Be6 {[%clk 0:01:12.5]} 16. Bh4 {[%clk 0:01:28.3]} 16... Bxh3 {[%clk
0:01:02.2]} 17. gxh3 {[%clk 0:01:22.4]} 17... Nxh3+ {[%clk 0:01:02.6]} 18. Kg2
{[%clk 0:01:20.9]} 18... Nf4+ {[%clk 0:01:02]} 19. Kh1 {[%clk 0:01:20.3]} 19...
Qd7 {[%clk 0:00:56.1]} 20. Ng1 {[%clk 0:01:13.8]} 20... Rf5 {[%clk 0:00:24.9]}
21. Qg4 {[%clk 0:00:39.4]} 21... h5 {[%clk 0:00:22.2]} 22. Qd1 {[%clk
0:00:37.2]} 22... g5 {[%clk 0:00:20.6]} 23. Bg3 {[%clk 0:00:36.8]} 23... h4
{[%clk 0:00:21]} 24. Bh2 {[%clk 0:00:36.9]} 24... Nxd4 {[%clk 0:00:19]} 25. Qg4
{[%clk 0:00:30.9]} 25... Nxb3 {[%clk 0:00:16.3]} 26. axb3 {[%clk 0:00:30.5]}
26... d4 {[%clk 0:00:17.2]} 27. Ne4 {[%clk 0:00:23.8]} 27... Qd5 {[%clk
0:00:16.4]} 28. Nf3 {[%clk 0:00:15.1]} 28... Nd3 {[%clk 0:00:14.5]} 29. Rg1
{[%clk 0:00:08.7]} 29... Qxe4 {[%clk 0:00:12.6]} 30. Qxe4 {[%clk 0:00:04.6]}
30... Nxf2+ {[%clk 0:00:12.7]} 31. Kg2 {[%clk 0:00:05]} 31... Nxe4 {[%clk
0:00:13.6]} 32. Rge1 {[%clk 0:00:04.2]} 32... h3+ {[%clk 0:00:13.5]} 33. Kxh3
{[%clk 0:00:01.3]} 33... Rxf3+ {[%clk 0:00:13.7]} 34. Kg4 {[%clk 0:00:01.1]}
34... Re3 {[%clk 0:00:13.2]} 35. Rxe3 {[%clk 0:00:01.7]} 35... dxe3 {[%clk
0:00:14.1]} 36. Re1 {[%clk 0:00:02.4]} 36... Bd4 {[%clk 0:00:13.4]} 0-1

[Event "*** Titled Tuesday Blitz"]
[Site "Chess.com"]
[Date "2020.10.20"]
[Round "2"]
[White "SergeyShtyka"]
[Black "Fins0905"]
[Result "1-0"]
[WhiteElo "2270"]
[BlackElo "2635"]
[TimeControl "180+1"]
[EndTime "10:18:16 PDT"]
[Termination "SergeyShtyka won by resignation"]

1. e4 {[%clk 0:03:00.9]} 1... d5 {[%clk 0:02:59.8]} 2. exd5 {[%clk 0:03:00.7]}
2... Qxd5 {[%clk 0:03:00.7]} 3. Nc3 {[%clk 0:03:01]} 3... Qa5 {[%clk 0:03:00.3]}
4. d4 {[%clk 0:03:00.9]} 4... Nf6 {[%clk 0:03:00.1]} 5. Nf3 {[%clk 0:02:59.9]}
5... Bf5 {[%clk 0:02:59.5]} 6. Bd3 {[%clk 0:02:59]} 6... Bxd3 {[%clk 0:02:57.6]}
7. Qxd3 {[%clk 0:02:59.2]} 7... c6 {[%clk 0:02:56.4]} 8. Bd2 {[%clk 0:02:58.4]}
8... e6 {[%clk 0:02:55]} 9. O-O-O {[%clk 0:02:58.2]} 9... Nbd7 {[%clk
0:02:49.1]} 10. Kb1 {[%clk 0:02:57.6]} 10... O-O-O {[%clk 0:02:34.3]} 11. Rhe1
{[%clk 0:02:56.9]} 11... Qc7 {[%clk 0:02:29.2]} 12. h3 {[%clk 0:02:49.3]} 12...
Bd6 {[%clk 0:02:24.3]} 13. Ne4 {[%clk 0:02:42.3]} 13... Nxe4 {[%clk 0:02:22.9]}
14. Qxe4 {[%clk 0:02:42.7]} 14... Nf6 {[%clk 0:02:20.3]} 15. Qe2 {[%clk
0:02:41.9]} 15... Nd5 {[%clk 0:02:09]} 16. c4 {[%clk 0:02:19.7]} 16... Nf4
{[%clk 0:02:06.1]} 17. Bxf4 {[%clk 0:02:19.6]} 17... Bxf4 {[%clk 0:02:06.9]} 18.
Ne5 {[%clk 0:02:12.8]} 18... Bxe5 {[%clk 0:01:57.6]} 19. Qxe5 {[%clk 0:02:01.5]}
19... Qxe5 {[%clk 0:01:49.6]} 20. dxe5 {[%clk 0:02:01.6]} 20... Kc7 {[%clk
0:01:29.7]} 21. Kc2 {[%clk 0:01:58.4]} 21... a5 {[%clk 0:01:25.9]} 22. b3 {[%clk
0:01:37.5]} 22... h5 {[%clk 0:01:05.8]} 23. h4 {[%clk 0:01:25.2]} 23... b5
{[%clk 0:00:44]} 24. cxb5 {[%clk 0:01:18]} 24... cxb5 {[%clk 0:00:43.8]} 25. a3
{[%clk 0:01:04.5]} 25... Kc6 {[%clk 0:00:42]} 26. f4 {[%clk 0:01:01.4]} 26... b4
{[%clk 0:00:31.3]} 27. axb4 {[%clk 0:01:00]} 27... axb4 {[%clk 0:00:32.2]} 28.
Re4 {[%clk 0:00:50.2]} 28... Rxd1 {[%clk 0:00:29.6]} 29. Kxd1 {[%clk 0:00:50.3]}
29... Kb5 {[%clk 0:00:27.5]} 30. Rc4 {[%clk 0:00:36.3]} 30... Rd8+ {[%clk
0:00:18.9]} 31. Ke2 {[%clk 0:00:32.8]} 31... Rd7 {[%clk 0:00:17.8]} 32. g3
{[%clk 0:00:27.9]} 32... g6 {[%clk 0:00:17.7]} 33. Rc8 {[%clk 0:00:27.1]} 33...
Ra7 {[%clk 0:00:15.4]} 34. Rb8+ {[%clk 0:00:25.1]} 34... Kc5 {[%clk 0:00:15.4]}
35. Rc8+ {[%clk 0:00:24.4]} 35... Kd5 {[%clk 0:00:13.5]} 36. Rc4 {[%clk
0:00:24.4]} 36... Rb7 {[%clk 0:00:10.8]} 37. Kd3 {[%clk 0:00:24.4]} 37... Rb8
{[%clk 0:00:10.6]} 38. Ke3 {[%clk 0:00:22.9]} 38... Rb7 {[%clk 0:00:10.6]} 39.
Kd3 {[%clk 0:00:23.2]} 39... Rd7 {[%clk 0:00:08.9]} 40. Rd4+ {[%clk 0:00:22.2]}
40... Kc6 {[%clk 0:00:08.8]} 41. Rxd7 {[%clk 0:00:22.4]} 41... Kxd7 {[%clk
0:00:09.4]} 42. Kc4 {[%clk 0:00:22.9]} 42... Ke7 {[%clk 0:00:09.1]} 43. Kxb4
{[%clk 0:00:22.9]} 43... f6 {[%clk 0:00:10]} 44. Kc5 {[%clk 0:00:17.9]} 1-0

[Event "*** Titled Tuesday Blitz"]
[Site "Chess.com"]
[Date "2020.10.20"]
[Round "2"]
[White "vaishali2001"]
[Black "nitpicker"]
[Result "1-0"]
[WhiteElo "2596"]
[BlackElo "2300"]
[TimeControl "180+1"]
[EndTime "10:18:22 PDT"]
[Termination "vaishali2001 won on time"]

1. d4 {[%clk 0:03:00.9]} 1... Nf6 {[%clk 0:02:59.2]} 2. Bf4 {[%clk 0:03:00.5]}
2... b6 {[%clk 0:02:58.1]} 3. e3 {[%clk 0:02:58.7]} 3... Bb7 {[%clk 0:02:58.1]}
4. Nf3 {[%clk 0:02:57.2]} 4... e6 {[%clk 0:02:58.1]} 5. Nbd2 {[%clk 0:02:53.6]}
5... d6 {[%clk 0:02:56.4]} 6. Be2 {[%clk 0:02:43.5]} 6... Nbd7 {[%clk
0:02:55.7]} 7. h3 {[%clk 0:02:42.9]} 7... g6 {[%clk 0:02:55.6]} 8. c4 {[%clk
0:02:43.2]} 8... Qe7 {[%clk 0:02:54.9]} 9. O-O {[%clk 0:02:42.8]} 9... Bg7
{[%clk 0:02:55]} 10. Bh2 {[%clk 0:02:35.9]} 10... O-O {[%clk 0:02:54.4]} 11. Qc2
{[%clk 0:02:33.4]} 11... e5 {[%clk 0:02:43.2]} 12. d5 {[%clk 0:02:33.1]} 12...
a5 {[%clk 0:02:31.3]} 13. b3 {[%clk 0:02:24.7]} 13... h5 {[%clk 0:02:14.9]} 14.
a3 {[%clk 0:02:19.2]} 14... Nh7 {[%clk 0:02:07.7]} 15. Rab1 {[%clk 0:01:56.8]}
15... f5 {[%clk 0:02:04.3]} 16. b4 {[%clk 0:01:57]} 16... axb4 {[%clk
0:02:03.3]} 17. axb4 {[%clk 0:01:57.9]} 17... b5 {[%clk 0:01:51.9]} 18. cxb5
{[%clk 0:01:42.8]} 18... Bxd5 {[%clk 0:01:50.6]} 19. Bc4 {[%clk 0:01:29.7]}
19... Nb6 {[%clk 0:01:40.6]} 20. Bxd5+ {[%clk 0:01:26.4]} 20... Nxd5 {[%clk
0:01:40.6]} 21. Qc6 {[%clk 0:01:09.3]} 21... Qf7 {[%clk 0:01:37.9]} 22. Rfc1
{[%clk 0:00:45.5]} 22... Rab8 {[%clk 0:01:30.5]} 23. Nc4 {[%clk 0:00:36.6]}
23... Rfc8 {[%clk 0:00:59.9]} 24. Nfd2 {[%clk 0:00:20.2]} 24... Nhf6 {[%clk
0:00:41.8]} 25. Na5 {[%clk 0:00:09.7]} 25... Rb6 {[%clk 0:00:27.6]} 26. Qc4
{[%clk 0:00:09.8]} 26... Rcb8 {[%clk 0:00:22.8]} 27. Nc6 {[%clk 0:00:10]} 27...
R8b7 {[%clk 0:00:23.1]} 28. Nd8 {[%clk 0:00:10.3]} 28... Qd7 {[%clk 0:00:20.9]}
29. Nxb7 {[%clk 0:00:10.5]} 29... Rxb7 {[%clk 0:00:21.3]} 30. e4 {[%clk
0:00:07]} 30... fxe4 {[%clk 0:00:20.6]} 31. Nxe4 {[%clk 0:00:07.4]} 31... Qxb5
{[%clk 0:00:17.3]} 32. Nxf6+ {[%clk 0:00:06.8]} 32... Bxf6 {[%clk 0:00:15.7]}
33. Qe4 {[%clk 0:00:03.9]} 33... Kg7 {[%clk 0:00:13.4]} 34. f4 {[%clk
0:00:03.9]} 34... Nxf4 {[%clk 0:00:07.7]} 35. Bxf4 {[%clk 0:00:04.8]} 35... exf4
{[%clk 0:00:07.4]} 36. Qxf4 {[%clk 0:00:05.7]} 36... Be5 {[%clk 0:00:06.1]} 37.
Qf3 {[%clk 0:00:04.8]} 37... Qb6+ {[%clk 0:00:03]} 38. Kh1 {[%clk 0:00:04.8]}
38... Rb8 {[%clk 0:00:03]} 39. Rf1 {[%clk 0:00:05.1]} 1-0

[Event "*** Titled Tuesday Blitz"]
[Site "Chess.com"]
[Date "2020.10.20"]
[Round "2"]
[White "VladaSviridova"]
[Black "medalja"]
[Result "0-1"]
[WhiteElo "2253"]
[BlackElo "2450"]
[TimeControl "180+1"]
[EndTime "10:18:23 PDT"]
[Termination "medalja won by resignation"]

1. d4 {[%clk 0:03:00.9]} 1... Nf6 {[%clk 0:02:58.4]} 2. c4 {[%clk 0:03:00.9]}
2... e6 {[%clk 0:02:58.3]} 3. Nf3 {[%clk 0:03:00.9]} 3... d5 {[%clk 0:02:59.2]}
4. Nc3 {[%clk 0:03:00.7]} 4... Be7 {[%clk 0:02:59.7]} 5. Bf4 {[%clk 0:03:00.8]}
5... O-O {[%clk 0:02:59.6]} 6. e3 {[%clk 0:03:01.1]} 6... c5 {[%clk 0:02:53.7]}
7. dxc5 {[%clk 0:02:58]} 7... Bxc5 {[%clk 0:02:54.6]} 8. a3 {[%clk 0:02:57.5]}
8... Nc6 {[%clk 0:02:54.5]} 9. Qc2 {[%clk 0:02:56.6]} 9... Qa5 {[%clk
0:02:51.5]} 10. Rd1 {[%clk 0:02:49.3]} 10... Re8 {[%clk 0:02:51.1]} 11. Nd2
{[%clk 0:02:09.1]} 11... e5 {[%clk 0:02:25.3]} 12. Bg5 {[%clk 0:02:08.8]} 12...
Nd4 {[%clk 0:02:25.2]} 13. Qb1 {[%clk 0:02:05.1]} 13... Bf5 {[%clk 0:02:22.5]}
14. Bd3 {[%clk 0:02:04.3]} 14... Bxd3 {[%clk 0:02:08.9]} 15. Qxd3 {[%clk
0:02:03.3]} 15... Ne4 {[%clk 0:02:09.2]} 16. Ndxe4 {[%clk 0:01:32.6]} 16... dxe4
{[%clk 0:02:08.5]} 17. Qxe4 {[%clk 0:01:30.1]} 17... Bxa3 {[%clk 0:01:39.8]} 18.
O-O {[%clk 0:01:25.8]} 18... Bxb2 {[%clk 0:01:38.9]} 19. Nd5 {[%clk 0:00:50.6]}
19... Ne2+ {[%clk 0:01:35.5]} 20. Kh1 {[%clk 0:00:48.8]} 20... Nc3 {[%clk
0:01:36]} 21. Nxc3 {[%clk 0:00:46.9]} 21... Bxc3 {[%clk 0:01:35.9]} 22. Qxb7
{[%clk 0:00:36]} 22... Rab8 {[%clk 0:01:15]} 23. Qe4 {[%clk 0:00:34.9]} 23... h6
{[%clk 0:01:12]} 24. Bh4 {[%clk 0:00:31.5]} 24... Qc7 {[%clk 0:01:11.9]} 25. Rd3
{[%clk 0:00:22.5]} 25... Bb4 {[%clk 0:01:11.2]} 26. h3 {[%clk 0:00:20.6]} 26...
a5 {[%clk 0:01:10.9]} 27. Rfd1 {[%clk 0:00:20.3]} 27... a4 {[%clk 0:01:08.7]}
28. Rd7 {[%clk 0:00:20.1]} 28... Qb6 {[%clk 0:01:01.4]} 29. Qf5 {[%clk 0:00:20]}
29... Qe6 {[%clk 0:00:56.9]} 30. Qxe6 {[%clk 0:00:19.5]} 30... Rxe6 {[%clk
0:00:57.8]} 31. Rd8+ {[%clk 0:00:18.7]} 31... Rxd8 {[%clk 0:00:58]} 32. Rxd8+
{[%clk 0:00:19.2]} 32... Kh7 {[%clk 0:00:58.6]} 33. Rb8 {[%clk 0:00:19.3]} 33...
Bc5 {[%clk 0:00:50.4]} 34. Ra8 {[%clk 0:00:19.3]} 34... a3 {[%clk 0:00:50]} 35.
Bg3 {[%clk 0:00:19.5]} 35... f6 {[%clk 0:00:49.5]} 36. Kh2 {[%clk 0:00:19.6]}
36... Rb6 {[%clk 0:00:47.8]} 37. Ra5 {[%clk 0:00:18.3]} 37... Rb1 {[%clk
0:00:40.5]} 38. Rxc5 {[%clk 0:00:17.4]} 38... a2 {[%clk 0:00:40.9]} 39. Ra5
{[%clk 0:00:17.9]} 39... a1=Q {[%clk 0:00:41.4]} 40. Rxa1 {[%clk 0:00:18.1]}
40... Rxa1 {[%clk 0:00:42.3]} 41. f4 {[%clk 0:00:18.2]} 41... e4 {[%clk
0:00:40]} 42. h4 {[%clk 0:00:16.6]} 42... Rc1 {[%clk 0:00:40.3]} 43. h5 {[%clk
0:00:16.5]} 43... Rxc4 {[%clk 0:00:40.9]} 44. Bf2 {[%clk 0:00:16.7]} 44... Rc5
{[%clk 0:00:41]} 45. g4 {[%clk 0:00:16.5]} 45... Rc2 {[%clk 0:00:40.8]} 46. Kg3
{[%clk 0:00:16.6]} 46... Kg8 {[%clk 0:00:41.1]} 47. Be1 {[%clk 0:00:15.7]} 47...
Kf7 {[%clk 0:00:41.2]} 48. Ba5 {[%clk 0:00:15.5]} 48... Re2 {[%clk 0:00:41.4]}
49. Bb6 {[%clk 0:00:15.7]} 49... Ke6 {[%clk 0:00:41.7]} 50. f5+ {[%clk
0:00:15.3]} 50... Kd5 {[%clk 0:00:40.7]} 51. Bd4 {[%clk 0:00:15.7]} 51... Kc4
{[%clk 0:00:39.5]} 52. Kf4 {[%clk 0:00:15.5]} 52... Rf2+ {[%clk 0:00:38.2]} 53.
Kg3 {[%clk 0:00:15.5]} 53... Rf3+ {[%clk 0:00:38.8]} 54. Kg2 {[%clk 0:00:15.8]}
54... Kd3 {[%clk 0:00:38.9]} 55. Kg1 {[%clk 0:00:15.4]} 55... Rxe3 {[%clk
0:00:39.1]} 56. Bxe3 {[%clk 0:00:15.1]} 56... Kxe3 {[%clk 0:00:40]} 57. Kf1
{[%clk 0:00:14.9]} 57... Kf4 {[%clk 0:00:40.3]} 58. Ke2 {[%clk 0:00:15.1]} 58...
Kxg4 {[%clk 0:00:40.7]} 59. Ke3 {[%clk 0:00:15.8]} 59... Kxf5 {[%clk 0:00:41.3]}
0-1

[Event "*** Titled Tuesday Blitz"]
[Site "Chess.com"]
[Date "2020.10.20"]
[Round "2"]
[White "AryanTari"]
[Black "MatyChess1"]
[Result "1-0"]
[WhiteElo "2860"]
[BlackElo "2546"]
[TimeControl "180+1"]
[EndTime "10:18:25 PDT"]
[Termination "AryanTari won on time"]

1. c4 {[%clk 0:03:00.9]} 1... e6 {[%clk 0:02:57.1]} 2. Nc3 {[%clk 0:03:00.2]}
2... d5 {[%clk 0:02:56.9]} 3. d4 {[%clk 0:03:00.3]} 3... Bb4 {[%clk 0:02:56.4]}
4. cxd5 {[%clk 0:02:58.1]} 4... exd5 {[%clk 0:02:56.6]} 5. Bf4 {[%clk
0:02:58.8]} 5... c6 {[%clk 0:02:55.7]} 6. e3 {[%clk 0:02:59]} 6... Nf6 {[%clk
0:02:55.9]} 7. Bd3 {[%clk 0:02:56.9]} 7... O-O {[%clk 0:02:55.5]} 8. h3 {[%clk
0:02:55]} 8... c5 {[%clk 0:02:38.8]} 9. Ne2 {[%clk 0:02:50.9]} 9... Nc6 {[%clk
0:02:37.1]} 10. dxc5 {[%clk 0:02:46.6]} 10... Bxc5 {[%clk 0:02:36.2]} 11. O-O
{[%clk 0:02:47.3]} 11... h6 {[%clk 0:02:35.2]} 12. Rc1 {[%clk 0:02:46.7]} 12...
Be6 {[%clk 0:02:10.8]} 13. Na4 {[%clk 0:02:31.4]} 13... Be7 {[%clk 0:02:07.5]}
14. Nc5 {[%clk 0:02:31.1]} 14... Bxc5 {[%clk 0:02:06.9]} 15. Rxc5 {[%clk
0:02:32]} 15... Re8 {[%clk 0:02:06.1]} 16. a3 {[%clk 0:02:12.4]} 16... Ne4
{[%clk 0:01:36.7]} 17. Rc1 {[%clk 0:02:12.2]} 17... Qf6 {[%clk 0:01:33.2]} 18.
b4 {[%clk 0:02:08.5]} 18... Rad8 {[%clk 0:01:33.6]} 19. b5 {[%clk 0:02:03.3]}
19... Ne5 {[%clk 0:01:28.3]} 20. Nd4 {[%clk 0:02:01.9]} 20... Nxd3 {[%clk
0:00:54]} 21. Qxd3 {[%clk 0:02:01.7]} 21... Qg6 {[%clk 0:00:54.9]} 22. Nxe6
{[%clk 0:01:33.2]} 22... Qxe6 {[%clk 0:00:49]} 23. Rc7 {[%clk 0:01:30.1]} 23...
Rc8 {[%clk 0:00:47.5]} 24. Rfc1 {[%clk 0:01:27.8]} 24... Rxc7 {[%clk 0:00:47.6]}
25. Rxc7 {[%clk 0:01:28.7]} 25... Rc8 {[%clk 0:00:31.7]} 26. Qc2 {[%clk
0:01:12]} 26... Rxc7 {[%clk 0:00:27.7]} 27. Qxc7 {[%clk 0:01:12.9]} 27... Qf6
{[%clk 0:00:14.2]} 28. Qxb7 {[%clk 0:00:53]} 28... Qa1+ {[%clk 0:00:13.8]} 29.
Kh2 {[%clk 0:00:53.7]} 29... Nxf2 {[%clk 0:00:14.7]} 30. Qc8+ {[%clk 0:00:53.6]}
30... Kh7 {[%clk 0:00:08.9]} 31. Qf5+ {[%clk 0:00:53.8]} 31... Kg8 {[%clk
0:00:09.5]} 32. Qxd5 {[%clk 0:00:53.9]} 32... Qh1+ {[%clk 0:00:08.4]} 33. Kg3
{[%clk 0:00:54.3]} 33... Qe1 {[%clk 0:00:08.9]} 34. Kf3 {[%clk 0:00:42]} 34...
Qf1 {[%clk 0:00:09.4]} 35. Kg3 {[%clk 0:00:34.4]} 35... Qe1 {[%clk 0:00:09.2]}
36. Qf3 {[%clk 0:00:26.4]} 36... Nh1+ {[%clk 0:00:05.7]} 37. Kh2 {[%clk
0:00:26.8]} 37... Nf2 {[%clk 0:00:05.5]} 38. a4 {[%clk 0:00:19.1]} 38... Kh7
{[%clk 0:00:04.9]} 39. a5 {[%clk 0:00:18.7]} 39... f5 {[%clk 0:00:04.5]} 40. Be5
{[%clk 0:00:08.9]} 40... Qh1+ {[%clk 0:00:04.2]} 41. Kg3 {[%clk 0:00:09.5]}
41... Ne4+ {[%clk 0:00:03.9]} 42. Kh4 {[%clk 0:00:10.1]} 1-0

[Event "*** Titled Tuesday Blitz"]
[Site "Chess.com"]
[Date "2020.10.20"]
[Round "2"]
[White "korbul"]
[Black "VitaliyBernadskiy"]
[Result "1-0"]
[WhiteElo "2523"]
[BlackElo "2781"]
[TimeControl "180+1"]
[EndTime "10:18:28 PDT"]
[Termination "korbul won by resignation"]

1. e4 {[%clk 0:03:00.9]} 1... e5 {[%clk 0:02:59.1]} 2. Nf3 {[%clk 0:03:00.2]}
2... Nc6 {[%clk 0:02:59.1]} 3. Bb5 {[%clk 0:02:59.9]} 3... g6 {[%clk 0:02:59.1]}
4. O-O {[%clk 0:02:57]} 4... Bg7 {[%clk 0:02:59]} 5. c3 {[%clk 0:02:56.4]} 5...
a6 {[%clk 0:02:59.3]} 6. Ba4 {[%clk 0:02:55]} 6... d6 {[%clk 0:02:59.6]} 7. d4
{[%clk 0:02:51.6]} 7... Bd7 {[%clk 0:02:59.9]} 8. d5 {[%clk 0:02:48.5]} 8...
Nce7 {[%clk 0:02:59.8]} 9. c4 {[%clk 0:02:45.5]} 9... h6 {[%clk 0:02:56.8]} 10.
Nc3 {[%clk 0:02:44.8]} 10... f5 {[%clk 0:02:52.5]} 11. exf5 {[%clk 0:02:34]}
11... gxf5 {[%clk 0:02:47.5]} 12. Nh4 {[%clk 0:02:33.9]} 12... Nf6 {[%clk
0:02:47.3]} 13. f4 {[%clk 0:02:26.3]} 13... e4 {[%clk 0:02:45.6]} 14. Be3 {[%clk
0:02:25.3]} 14... Bxa4 {[%clk 0:01:49.3]} 15. Qxa4+ {[%clk 0:02:24.1]} 15... Kf7
{[%clk 0:01:49.2]} 16. Ne2 {[%clk 0:02:21.7]} 16... b5 {[%clk 0:01:43.3]} 17.
Qc2 {[%clk 0:02:12.6]} 17... Ng4 {[%clk 0:01:28]} 18. Bd4 {[%clk 0:02:07.2]}
18... Rg8 {[%clk 0:01:00.7]} 19. Bxg7 {[%clk 0:02:02]} 19... Rxg7 {[%clk
0:01:01.6]} 20. Nd4 {[%clk 0:02:01.6]} 20... Ne3 {[%clk 0:00:44.9]} 21. Qe2
{[%clk 0:02:00.3]} 21... Nxf1 {[%clk 0:00:36.5]} 22. Rxf1 {[%clk 0:01:41.3]}
22... Qd7 {[%clk 0:00:34.6]} 23. Ne6 {[%clk 0:01:36]} 23... Rg4 {[%clk
0:00:30.2]} 24. Nxf5 {[%clk 0:01:33.2]} 24... Nxf5 {[%clk 0:00:24.3]} 25. Qxg4
{[%clk 0:01:32]} 25... Kf6 {[%clk 0:00:24.9]} 26. Qe2 {[%clk 0:01:24.4]} 26...
e3 {[%clk 0:00:20]} 27. g4 {[%clk 0:01:23]} 27... Rg8 {[%clk 0:00:19.4]} 28. Kh1
{[%clk 0:01:22.2]} 28... bxc4 {[%clk 0:00:12.8]} 29. gxf5 {[%clk 0:01:20.3]}
29... Qb5 {[%clk 0:00:13.4]} 30. Qxe3 {[%clk 0:01:11.1]} 30... Qxd5+ {[%clk
0:00:13.1]} 31. Qf3 {[%clk 0:01:11.1]} 31... Qxf3+ {[%clk 0:00:10.9]} 32. Rxf3
{[%clk 0:01:10.3]} 32... c5 {[%clk 0:00:11.2]} 33. Nc7 {[%clk 0:01:05]} 33...
Kxf5 {[%clk 0:00:11]} 34. Rf2 {[%clk 0:00:48.8]} 34... Rc8 {[%clk 0:00:02.8]}
35. Nd5 {[%clk 0:00:47.7]} 35... Ke4 {[%clk 0:00:02.8]} 36. Nc3+ {[%clk
0:00:43.7]} 36... Ke3 {[%clk 0:00:03]} 37. Rf1 {[%clk 0:00:40.3]} 37... Rd8
{[%clk 0:00:03.3]} 38. f5 {[%clk 0:00:39.2]} 38... d5 {[%clk 0:00:03.7]} 39. f6
{[%clk 0:00:39.7]} 39... d4 {[%clk 0:00:04]} 40. f7 {[%clk 0:00:40.2]} 40...
dxc3 {[%clk 0:00:04.5]} 41. bxc3 {[%clk 0:00:39.4]} 41... Rf8 {[%clk 0:00:04.8]}
42. Kg2 {[%clk 0:00:39.5]} 42... Kd3 {[%clk 0:00:03.7]} 43. Rf3+ {[%clk
0:00:39.1]} 43... Kc2 {[%clk 0:00:04.1]} 44. Kg3 {[%clk 0:00:39.2]} 44... Kb2
{[%clk 0:00:04.2]} 45. Kg4 {[%clk 0:00:39.5]} 45... Kxa2 {[%clk 0:00:04.3]} 46.
Kh5 {[%clk 0:00:39.7]} 46... Kb3 {[%clk 0:00:04.7]} 47. Kxh6 {[%clk 0:00:40.1]}
47... a5 {[%clk 0:00:05.1]} 48. Kg7 {[%clk 0:00:40.5]} 48... Rb8 {[%clk
0:00:03]} 49. f8=Q {[%clk 0:00:40.5]} 49... Rxf8 {[%clk 0:00:02.7]} 50. Kxf8
{[%clk 0:00:41.4]} 50... a4 {[%clk 0:00:03.2]} 51. h4 {[%clk 0:00:41.7]} 51...
a3 {[%clk 0:00:03.8]} 52. h5 {[%clk 0:00:42]} 52... a2 {[%clk 0:00:04.4]} 53.
Rf1 {[%clk 0:00:41.7]} 53... Kxc3 {[%clk 0:00:04.8]} 54. h6 {[%clk 0:00:42.1]}
54... Kb2 {[%clk 0:00:04.9]} 55. h7 {[%clk 0:00:42.2]} 55... c3 {[%clk
0:00:05.8]} 56. h8=Q {[%clk 0:00:42.3]} 1-0